bitfinex/quotes_ETHUSD_20240722
["timestamp","ask_amount","ask_price","bid_price","bid_amount"]
[1721654981389,4.35430796,3496.0,3495.3,3.86397]
[1721654981390,0.81608112,3495.4,3495.3,3.86397]
[1721654981930,4.35435594,3496.0,3495.4,2.86088]
[1721654981931,0.81593799,3495.9,3495.4,2.86088]
[1721654982192,0.81594372,3495.8,3495.3,3.86397]
[1721654982491,0.81594372,3495.7,3495.3,3.86397]
[1721654982694,0.81594372,3495.6,3495.3,3.86397]
[1721654982845,0.81594372,3495.5,3495.3,3.86397]
[1721654983044,0.81594372,3495.4,3495.3,3.86397]
[1721654983347,0.81594372,3495.8,3495.3,3.86397]
[1721654983542,0.81594372,3495.7,3495.3,1.003]
[1721654984443,0.81594372,3495.6,3495.3,1.003]
[1721654984649,5.25529,3495.9,3495.3,1.003]
[1721654984650,0.81594372,3495.5,3495.3,1.003]
[1721654984883,0.81594372,3495.4,3495.3,1.003]
[1721654985291,0.81594372,3495.4,3494.8,2.86138]
[1721654985505,0.81594372,3495.3,3494.8,2.86138]
[1721654985987,0.81594372,3495.3,3494.0,2.423]
[1721654985988,4.10614372,3495.2,3494.0,2.423]
[1721654986192,2.86144,3494.8,3494.2,2.86187]
[1721654986484,0.81594372,3494.7,3494.2,2.86187]
[1721654986689,0.81594372,3494.6,3494.2,2.86187]
[1721654986898,0.81594372,3494.5,3494.2,2.86187]
[1721654987047,0.81594372,3494.4,3494.2,2.86187]
[1721654987258,2.86131,3494.9,3494.2,2.86187]
[1721654987259,0.81594372,3494.3,3494.2,2.86187]
[1721654987482,0.81594372,3494.8,3494.2,2.86187]
[1721654987661,1.33307933,3494.8,3494.2,2.86187]
[1721654987997,1.33307933,3494.8,3494.2,1.003]
[1721654987998,2.86155,3494.6,3494.2,1.003]
[1721654988293,0.81594372,3494.5,3494.2,1.003]
[1721654988999,0.81594372,3494.5,3494.0,1.003]
[1721654989348,3.67758372,3494.5,3494.0,1.003]
[1721654989578,3.67766372,3494.4,3493.7,5.28525]
[1721654989783,0.81594372,3494.3,3493.7,5.28525]
[1721654990089,3.67774372,3494.3,3494.0,1.003]
[1721654990247,3.09041393,3494.5,3493.7,2.86228]
[1721654990248,0.81594372,3494.2,3493.7,2.86228]
[1721654990453,3.09041393,3494.5,3493.8,1.003]
[1721654990454,0.81572793,3494.1,3493.8,1.003]
[1721654990788,3.09041393,3494.5,3494.0,1.003]
[1721654991093,0.81571128,3494.4,3494.0,1.003]
[1721654991449,2.4727,3494.2,3493.3,2.86259]
[1721654991647,2.4727,3494.2,3493.4,1.003]
[1721654991648,0.81571128,3494.1,3493.4,1.003]
[1721654992001,3.67773128,3494.1,3493.6,1.003]
[1721654992165,3.67777128,3494.0,3493.6,1.003]
[1721654992366,2.86202,3494.1,3492.8,5.5115706]
[1721654992367,2.86222,3493.8,3493.4,1.003]
[1721654992570,1.71696041,3493.9,3493.4,1.003]
[1721654992571,0.90124913,3493.9,3493.4,1.003]
[1721654992749,3.67786512,3493.8,3493.1,2.86278]
[1721654993088,2.88,3494.5,3493.6,1.003]
[1721654993305,3.81550016,3494.4,3493.9,3.86512]
[1721654993469,3.81550016,3494.4,3494.0,2.86202]
[1721654993470,0.81550016,3494.3,3494.0,2.86202]
[1721654993996,2.88,3494.5,3493.3,2.3068]
[1721654994208,2.88,3494.5,3494.4,3.86472]
[1721654994358,3.0,3495.0,3494.4,3.86472]
[1721654994553,0.81522648,3494.9,3494.4,3.86472]
[1721654994783,1.48286413,3494.9,3494.4,3.86472]
[1721654995098,0.81522648,3494.8,3494.4,1.003]
[1721654995311,3.67661648,3494.8,3494.4,1.003]
[1721654995491,3.81522648,3494.7,3494.2,3.86481]
[1721654995710,0.81522648,3494.6,3494.2,1.003]
[1721654996355,0.66766165,3494.5,3494.1,2.86195]
[1721654996715,3.0,3494.7,3494.2,1.003]
[1721654996867,0.8159162,3494.6,3494.2,1.003]
[1721654997072,0.8159162,3494.5,3494.2,1.003]
[1721654997375,2.86156,3494.6,3494.0,1.003]
[1721654997771,2.86156,3494.6,3494.0,3.86502]
[1721654998012,6.21145,3494.8,3494.2,1.003]
[1721654998290,4.36513218,3494.7,3494.0,2.86202]
[1721654998499,0.81574341,3494.6,3494.1,2.86196]
[1721654998679,0.68790877,3494.7,3494.1,2.86196]
[1721654998878,3.68790877,3494.7,3494.1,2.86196]
[1721654999275,2.8617,3494.5,3493.8,2.86219]
[1721654999475,2.86212,3494.0,3492.7,2.86303]
[1721654999798,6.25942042,3494.4,3493.2,2.8627]
[1721654999799,2.86215,3493.9,3493.2,2.8627]
[1721655000178,8.3236,3494.4,3493.0,2.2658]
[1721655000399,1.16594082,3494.3,3493.7,2.86224]
[1721655000713,8.3236,3494.4,3493.7,2.86224]
[1721655000714,2.88,3494.4,3493.8,2.4156]
[1721655000875,2.88,3494.4,3494.1,2.86189]
[1721655001220,2.88,3494.4,3493.8,2.86218]
[1721655001367,0.574161,3494.3,3493.7,2.86225]
[1721655001565,0.574161,3494.3,3493.8,2.86219]
[1721655001883,0.574161,3494.3,3492.8,0.1502006]
[1721655001884,2.86256,3493.4,3492.8,0.1502006]
[1721655002060,2.8626,3493.4,3492.8,0.1502006]
[1721655002475,3.0,3493.3,3492.8,0.1502006]
[1721655002708,3.872498,3493.3,3492.8,0.1502006]
[1721655002867,2.86238,3493.6,3492.8,0.1502006]
[1721655003066,3.0,3493.5,3492.8,3.0132106]
[1721655003273,3.35,3493.5,3492.8,0.1502006]
[1721655003475,2.63160886,3494.2,3492.8,0.1502006]
[1721655003476,2.3623,3493.8,3492.8,0.1502006]
[1721655003791,5.22452,3493.8,3492.8,0.1502006]
[1721655004110,4.172452,3493.7,3492.8,0.1502006]
[1721655004312,2.86256,3493.4,3492.8,0.1502006]
[1721655004475,0.822452,3493.7,3492.8,0.1502006]
[1721655004671,3.822452,3493.7,3492.8,0.1502006]
[1721655004872,2.86248,3493.5,3492.8,0.1502006]
[1721655005075,2.2865,3493.4,3492.8,0.1502006]
[1721655005325,0.35,3493.2,3492.8,0.1502006]
[1721655005490,3.0,3493.3,3492.8,0.1502006]
[1721655006012,0.29620886,3494.2,3492.8,0.1502006]
[1721655006228,0.35,3494.0,3493.9,2.86213]
[1721655006516,2.88,3494.4,3494.0,2.86204]
[1721655006676,2.88,3494.4,3494.1,2.86191]
[1721655007037,2.86105,3495.3,3494.2,2.86181]
[1721655007324,0.35,3495.1,3494.5,2.86162]
[1721655007531,2.88,3495.6,3494.1,0.572403]
[1721655007678,3.82782531,3495.5,3493.8,2.86219]
[1721655007874,5.422,3495.1,3493.1,2.312]
[1721655008142,2.86193,3494.2,3493.3,2.86256]
[1721655008333,2.86188,3494.3,3493.5,2.8624]
[1721655008548,2.86202,3494.1,3493.1,2.312]
[1721655008836,3.434404,3494.1,3493.3,2.86261]
[1721655009128,3.0,3494.0,3493.1,5.17478]
[1721655009333,3.572384,3494.1,3492.8,0.1502006]
[1721655009559,2.86265,3493.3,3492.8,0.1502006]
[1721655009709,2.86285,3493.1,3492.8,0.1502006]
[1721655009905,0.57255,3493.0,3492.8,0.1502006]
[1721655010103,0.35,3493.3,3492.8,0.1502006]
[1721655010304,3.0,3493.9,3492.9,2.86294]
[1721655010536,2.86229,3493.7,3492.9,2.86294]
[1721655010745,3.0,3493.6,3492.9,2.86294]
[1721655011028,3.0,3493.6,3493.0,2.86286]
[1721655011227,2.86246,3493.5,3492.8,3.0132206]
[1721655011431,2.86254,3493.4,3492.8,0.1502006]
[1721655011843,2.86271,3493.2,3492.8,0.1502006]
[1721655012349,2.86246,3493.5,3492.8,0.1502006]
[1721655012643,3.21246,3493.5,3492.8,0.1502006]
[1721655012795,3.22903704,3493.4,3492.8,0.1502006]
[1721655013245,2.86263,3493.3,3492.8,0.1502006]
[1721655013397,3.0,3493.2,3492.8,0.1502006]
[1721655013804,2.86295,3492.9,3492.8,0.1502006]
[1721655014095,5.86295,3492.9,3492.8,0.1502006]
[1721655014293,2.3675,3491.0,3490.3,0.60045573]
[1721655014492,8.0965,3491.0,3489.2,0.1502006]
[1721655014722,1.337,3491.0,3490.3,2.86507]
[1721655014965,1.337,3491.0,3489.7,2.425]
[1721655014966,3.21,3491.5,3490.7,2.86471]
[1721655015118,2.86441,3491.2,3490.2,2.86512]
[1721655015322,3.0,3491.4,3489.7,0.016]
[1721655015573,3.0,3491.4,3489.9,2.8654]
[1721655015717,5.729,3491.0,3489.8,2.86546]
[1721655015925,3.0,3491.0,3490.1,2.409]
[1721655016144,0.35,3491.5,3490.8,2.86464]
[1721655016345,0.609399,3491.5,3490.8,2.8646]
[1721655016550,2.88,3491.6,3491.0,2.8645]
[1721655016723,2.88,3491.6,3491.0,2.4319]
[1721655016917,2.88,3491.6,3491.4,2.86417]
[1721655017242,2.88,3491.6,3490.3,2.3451]
[1721655017442,2.8644,3491.2,3490.3,2.865]
[1721655017620,0.28644,3491.1,3490.4,2.86493]
[1721655017947,3.0,3491.5,3491.0,2.8645]
[1721655018147,3.0,3491.5,3490.8,2.86466]
[1721655018367,3.0,3491.5,3490.1,2.86519]
[1721655018368,3.0,3491.5,3490.1,2.409]
[1721655018540,3.0,3491.5,3490.5,2.86491]
[1721655018740,3.0,3491.5,3490.8,2.86466]
[1721655018938,2.88,3491.6,3491.0,0.05728698]
[1721655019267,2.409,3493.3,3491.7,2.86391]
[1721655019268,2.86312,3492.7,3491.7,2.86391]
[1721655019594,2.8633,3492.5,3491.5,2.86409]
[1721655019719,0.860642,3492.4,3491.3,5.27325]
[1721655019925,2.86371,3492.0,3491.1,3.4144]
[1721655020124,2.86385,3491.8,3490.9,5.2555953]
[1721655020358,2.86361,3492.1,3491.2,2.86428]
[1721655020664,3.21361,3492.1,3491.2,2.86428]
[1721655020881,0.35,3492.1,3491.1,2.86435]
[1721655021175,2.86321,3492.6,3491.2,0.05727897]
[1721655021379,0.35,3492.3,3491.3,0.55]
[1721655021671,2.8637,3492.0,3491.3,0.55]
[1721655021872,2.86378,3491.9,3490.9,5.2555653]
[1721655022174,3.0,3492.5,3490.9,2.3910253]
[1721655022334,2.86386,3491.8,3490.9,0.0571253]
[1721655022538,2.86415,3491.5,3490.9,0.0571253]
[1721655022759,2.86396,3491.7,3490.9,0.0571253]
[1721655022972,3.21364,3492.1,3491.1,2.8644]
[1721655023159,2.86385,3491.8,3490.9,0.0571253]
[1721655023360,0.586385,3491.7,3490.9,2.9217053]
[1721655023570,3.0,3491.9,3491.1,2.86435]
[1721655023876,3.0,3492.1,3491.5,2.86409]
[1721655024176,0.91884579,3492.4,3491.9,2.86369]
[1721655024475,3.17545786,3492.7,3491.7,2.86392]
[1721655024476,6.03857786,3492.7,3491.7,2.86392]
[1721655024691,3.17545786,3492.7,3491.6,0.55]
[1721655024838,2.86348,3492.3,3491.2,2.3643]
[1721655025037,2.86348,3492.3,3491.3,3.41421]
[1721655025239,0.286348,3492.2,3491.2,2.3643]
[1721655025435,3.17545786,3492.7,3491.2,2.3643]
[1721655025664,3.21346,3492.3,3491.3,0.55]
[1721655025835,2.86354,3492.2,3491.2,2.3643]
[1721655026040,2.86361,3492.1,3491.2,2.3643]
[1721655026261,2.86361,3492.1,3490.9,2.9216953]
[1721655026262,2.8637,3492.0,3490.9,0.0571253]
[1721655026482,0.28637,3491.9,3490.9,0.0571253]
[1721655026679,3.35,3492.1,3491.3,2.86425]
[1721655026980,3.0,3492.1,3491.5,2.86406]
[1721655027181,3.0,3492.6,3491.2,2.86427]
[1721655027337,0.35,3492.4,3491.1,2.86437]
[1721655027537,0.35,3492.4,3491.2,2.86433]
[1721655027538,2.86369,3492.0,3491.2,2.86433]
[1721655027742,0.572729,3492.0,3491.2,2.86433]
[1721655027988,5.86362,3492.1,3491.2,2.86433]
[1721655028149,2.86393,3491.7,3490.9,0.0571253]
[1721655028480,2.86385,3491.8,3490.9,2.9216553]
[1721655028782,3.0,3492.1,3490.9,0.0571253]
[1721655028783,5.86367,3492.1,3490.9,0.0571253]
[1721655028942,3.35,3492.1,3491.1,2.86442]
[1721655029278,0.621351,3492.0,3491.2,2.86428]
[1721655029480,3.21344,3492.3,3491.2,2.86428]
[1721655029641,2.86377,3491.9,3491.0,2.86446]
[1721655029845,2.8636,3492.1,3491.1,2.86436]
[1721655030143,3.0,3492.6,3491.1,2.86436]
[1721655030346,6.013,3492.6,3490.9,0.0571253]
[1721655030575,2.86409,3491.6,3490.9,0.0571253]
[1721655030940,2.8641,3491.5,3490.9,0.0571253]
[1721655031362,3.0,3491.9,3490.9,0.0571253]
[1721655031363,5.729,3491.0,3490.9,0.0571253]
[1721655031744,8.729,3491.0,3490.9,0.0571253]
[1721655031946,12.4664,3491.0,3490.9,0.0571253]
[1721655032156,12.8164,3491.0,3490.9,0.0571253]
[1721655032403,9.9519,3491.0,3490.9,0.0571253]
[1721655032546,3.35,3491.0,3490.9,0.0571253]
[1721655032743,0.35,3491.0,3490.9,2.9217153]
[1721655032949,0.44930039,3491.0,3490.9,5.7863053]
[1721655033417,1e-08,3491.0,3490.9,5.7863053]
[1721655033708,1e-08,3491.0,3490.9,6.3363053]
[1721655033926,1e-08,3491.0,3490.9,12.51042583]
[1721655034064,1e-08,3491.0,3490.9,9.64583583]
[1721655034473,1e-08,3491.0,3490.9,6.78124583]
[1721655034982,1e-08,3491.0,3490.9,9.64583583]
[1721655035231,1e-08,3491.0,3490.9,1.01275583]
[1721655035375,1e-08,3491.0,3490.9,0.0571253]
[1721655035572,1e-08,3491.0,3490.9,2.9217153]
[1721655035771,1e-08,3491.0,3490.9,5.7863053]
[1721655036080,1e-08,3491.0,3490.9,2.9217153]
[1721655036281,1e-08,3491.0,3490.9,0.95776283]
[1721655036499,1e-08,3491.0,3490.9,0.0571253]
[1721655039113,2.86450001,3491.0,3490.9,0.0571253]
[1721655039907,1e-08,3491.0,3490.9,0.0571253]
[1721655043580,1e-08,3491.0,3490.9,2.9217153]
[1721655044231,1e-08,3491.0,3490.9,5.7863053]
[1721655044381,1e-08,3491.0,3490.9,12.59382583]
[1721655046403,3.0,3492.6,3491.8,2.86377]
[1721655046603,0.29496627,3492.8,3491.4,3.22]
[1721655046931,0.29496627,3492.8,3492.2,2.86349]
[1721655047130,0.29496627,3492.8,3492.2,2.86345]
[1721655047336,5.74263,3493.3,3492.2,2.86345]
[1721655047495,0.860516,3493.2,3492.5,2.86326]
[1721655048133,0.860516,3493.2,3491.9,5.5899]
[1721655048134,0.860516,3493.2,3492.4,2.86331]
[1721655048333,2.88,3493.3,3492.8,2.86302]
[1721655048545,2.88,3493.3,3492.6,2.86314]
[1721655049122,2.88,3493.3,3492.8,2.86302]
[1721655049323,2.88,3493.3,3493.1,2.86271]
[1721655049633,2.88,3493.3,3492.5,2.86327]
[1721655049634,0.35,3493.8,3493.2,2.86268]
[1721655049937,0.32121,3493.8,3493.2,2.86268]
[1721655050631,0.32121,3493.8,3493.3,2.86257]
[1721655050831,2.8618,3494.3,3493.3,2.86257]
[1721655051059,2.3411,3494.7,3493.3,2.8626]
[1721655051060,2.86163,3494.6,3493.3,2.8626]
[1721655051343,2.86193,3494.2,3493.3,2.8626]
[1721655051542,3.21164,3494.5,3493.0,3.22]
[1721655051723,2.86164,3494.5,3493.6,2.86236]
[1721655051926,2.86164,3494.5,3493.3,2.86257]
[1721655051927,3.668161,3494.4,3493.3,2.86257]
[1721655052109,0.806421,3494.4,3493.7,2.86229]
[1721655052516,0.806421,3494.4,3493.8,2.86221]
[1721655052711,0.806421,3494.4,3493.6,2.86231]
[1721655052912,0.806421,3494.4,3493.7,2.86228]
[1721655053238,2.86164,3494.5,3493.5,2.86244]
[1721655053239,3.2286661,3494.3,3493.5,2.86244]
[1721655053450,3.2286661,3494.3,3493.0,3.22]
[1721655053451,0.3668061,3494.3,3493.6,2.86236]
[1721655053650,0.3668061,3494.3,3493.7,2.86228]
[1721655053848,2.86156,3494.6,3493.7,2.86228]
[1721655054140,5.74139,3494.8,3493.9,2.86209]
[1721655054437,2.88,3494.8,3494.0,2.86204]
[1721655054620,2.88,3494.8,3493.8,2.86218]
[1721655054621,2.88,3494.8,3494.1,2.86196]
[1721655055144,2.88,3494.8,3493.5,2.86245]
[1721655055145,0.35,3494.2,3493.5,2.86245]
[1721655055354,2.86166,3494.5,3493.4,2.86253]
[1721655055504,0.286166,3494.4,3493.5,2.86244]
[1721655055704,3.147886,3494.4,3493.5,2.86244]
[1721655056042,2.86181,3494.3,3493.3,2.86256]
[1721655056226,2.86181,3494.3,3492.9,2.86289]
[1721655056227,2.86206,3494.0,3492.9,2.86289]
[1721655056545,3.21206,3494.0,3493.1,2.86278]
[1721655056715,0.607405,3493.9,3493.1,2.86278]
[1721655056918,0.607405,3493.9,3493.2,2.86264]
[1721655057130,3.21188,3494.2,3493.4,2.86253]
[1721655057296,0.35,3494.2,3493.2,2.86264]
[1721655057502,0.35,3494.2,3493.0,2.86284]
[1721655057704,2.86255,3493.4,3492.6,2.86314]
[1721655057942,2.86237,3493.6,3492.3,2.86342]
[1721655058247,2.86292,3493.0,3492.0,2.86366]
[1721655058550,2.86272,3493.2,3492.2,2.86351]
[1721655058701,0.35,3493.0,3492.3,2.86339]
[1721655058907,0.35,3493.0,3492.6,2.86319]
[1721655059105,5.32165,3493.4,3492.4,2.8633]
[1721655059339,1.1970377,3493.3,3492.3,2.86343]
[1721655059537,1.1970377,3493.3,3492.1,2.86358]
[1721655059771,1.1970377,3493.3,3491.6,0.0502242]
[1721655059772,0.35,3493.3,3492.3,2.86343]
[1721655059924,2.4591,3493.4,3492.5,2.86322]
[1721655060110,0.286237,3493.5,3492.5,2.86322]
[1721655060321,2.86281,3493.1,3492.3,2.86342]
[1721655060526,0.35,3493.4,3491.6,0.0502242]
[1721655060927,0.35,3493.4,3492.5,2.86319]
[1721655061146,3.21254,3493.4,3492.5,2.86319]
[1721655061347,2.86262,3493.3,3492.0,2.86366]
[1721655061527,2.86284,3493.1,3492.2,2.86347]
[1721655061736,0.321262,3493.2,3492.3,2.86343]
[1721655061737,3.184012,3493.2,3492.3,2.86343]
[1721655061947,3.0,3493.1,3492.7,2.8631]
[1721655062245,3.184012,3493.2,3492.3,2.86342]
[1721655062615,0.321262,3493.2,3492.4,2.86334]
[1721655062822,0.6183862,3493.1,3492.5,2.86327]
[1721655063003,0.6183862,3493.1,3491.6,0.0502242]
[1721655063206,2.8634,3492.4,3491.6,0.0502242]
[1721655063654,2.86357,3492.2,3491.6,0.0502242]
[1721655064026,2.86349,3492.3,3491.6,0.0502242]
[1721655064297,2.86393,3491.7,3491.6,0.0502242]
[1721655064442,5.72786,3491.7,3491.6,0.0502242]
[1721655064627,8.72786,3491.7,3491.6,0.0502242]
[1721655065242,9.07786,3491.7,3491.6,0.0502242]
[1721655065448,11.94179,3491.7,3491.6,0.0502242]
[1721655065627,11.40385366,3491.7,3491.6,0.0502242]
[1721655065828,0.64588166,3491.7,3491.6,0.0502242]
[1721655066069,0.35,3491.7,3491.6,0.0502242]
[1721655066281,2.8636,3492.1,3491.6,0.0502242]
[1721655066637,5.8633,3492.5,3491.6,0.0502242]
[1721655066945,0.35,3492.3,3491.8,2.86384]
[1721655067258,2.4918,3493.0,3491.6,2.9142142]
[1721655067473,2.86342,3492.4,3491.6,0.0502242]
[1721655067768,2.86322,3492.6,3491.6,0.0502242]
[1721655067968,2.86322,3492.6,3491.7,2.86388]
[1721655068133,3.21322,3492.6,3491.7,2.86388]
[1721655068325,0.607627,3492.5,3491.6,0.0502242]
[1721655068553,3.0,3492.9,3491.6,0.0502242]
[1721655068554,2.86353,3492.2,3491.6,0.0502242]
[1721655068754,5.86299,3492.9,3491.7,2.86392]
[1721655068755,2.86322,3492.6,3491.7,2.86392]
[1721655068941,2.86322,3492.6,3491.6,0.0502242]
[1721655068942,0.35,3492.5,3491.8,2.86385]
[1721655069158,0.35,3492.5,3491.6,0.0502242]
[1721655069359,3.0,3492.9,3491.6,0.0502242]
[1721655069563,2.86335,3492.5,3491.6,2.9141842]
[1721655069867,2.86346,3492.3,3491.6,0.0502242]
[1721655070082,2.86337,3492.4,3491.6,0.0502242]
[1721655070733,2.86345,3492.3,3491.6,0.0502242]
[1721655070926,2.86355,3492.2,3491.6,0.0502242]
[1721655071160,2.86374,3492.0,3491.6,0.0502242]
[1721655071401,0.572692,3492.1,3491.6,0.0502242]
[1721655071402,2.86377,3491.9,3491.6,0.0502242]
[1721655071585,0.572692,3492.1,3491.6,0.0502242]
[1721655071783,3.0,3492.3,3491.6,2.9142242]
[1721655072004,0.86504492,3492.8,3491.6,2.9142242]
[1721655072005,0.35,3492.4,3491.6,0.0502242]
[1721655072309,1.21504492,3492.8,3492.0,2.86368]
[1721655072458,0.86504492,3492.8,3492.1,2.8636]
[1721655072660,0.86504492,3492.8,3492.0,2.86363]
[1721655073413,5.86297,3492.9,3491.8,2.86382]
[1721655073606,5.86297,3492.9,3492.1,2.8636]
[1721655073821,0.29581923,3493.0,3492.4,2.86329]
[1721655073967,2.86262,3493.3,3492.5,2.86321]
[1721655074307,5.25614,3493.1,3491.6,2.9141642]
[1721655074465,2.86299,3492.9,3491.6,0.0502242]
[1721655074660,2.86295,3492.9,3492.1,2.86354]
[1721655074863,2.86303,3492.8,3491.9,2.8637]
[1721655075062,2.86303,3492.8,3492.0,2.86368]
[1721655075360,3.321303,3492.7,3492.0,2.86362]
[1721655075593,0.321303,3492.7,3491.8,2.86382]
[1721655075758,3.321303,3492.7,3491.8,2.86382]
[1721655075963,3.0,3492.6,3491.8,2.4591]
[1721655076160,3.0,3492.9,3491.8,2.4591]
[1721655076161,5.863,3492.9,3492.1,2.8636]
[1721655076368,5.863,3492.9,3491.8,5.32293]
[1721655076608,6.213,3492.9,3491.8,5.32293]
[1721655076897,3.0,3492.9,3492.4,2.86333]
[1721655077109,3.0,3492.9,3492.1,2.86357]
[1721655077110,0.3,3492.8,3492.3,2.86337]
[1721655077262,0.29580992,3493.5,3492.4,0.05726401]
[1721655077465,0.35,3493.1,3493.0,2.86286]
[1721655077697,5.72213,3493.9,3493.0,2.86286]
[1721655077902,2.8617,3494.5,3493.1,0.05725575]
[1721655078104,0.83912218,3494.4,3493.4,2.86251]
[1721655078271,5.34346,3495.0,3492.7,2.3041]
[1721655078272,0.35,3494.0,3493.3,2.86256]
[1721655078615,0.29578153,3494.5,3493.0,2.8628]
[1721655078616,2.86202,3494.1,3493.0,2.8628]
[1721655078835,2.86219,3493.9,3493.1,2.86278]
[1721655079010,2.86202,3494.1,3493.2,2.86267]
[1721655079378,2.86189,3494.2,3493.4,2.86253]
[1721655079583,0.35,3494.2,3493.5,2.86239]
[1721655079883,2.86185,3494.3,3493.5,2.8624]
[1721655080284,3.15743153,3494.5,3493.5,2.8624]
[1721655080506,0.35,3494.4,3493.6,2.86237]
[1721655080813,0.35,3494.4,3492.7,2.3041]
[1721655081029,0.35073415,3494.3,3493.7,2.86229]
[1721655081792,0.29578153,3494.5,3493.8,2.8622]
[1721655082002,0.29578153,3494.5,3493.7,2.86224]
[1721655082003,3.29578153,3494.5,3493.7,2.86224]
[1721655082179,3.29578153,3494.5,3493.8,2.86215]
[1721655082385,0.29578153,3494.5,3493.3,2.86255]
[1721655082590,0.29578153,3494.5,3493.9,2.86211]
[1721655082810,3.15747153,3494.5,3493.5,2.86243]
[1721655083015,0.29578153,3494.5,3493.8,2.8622]
[1721655083381,0.29578153,3494.5,3494.2,2.86188]
[1721655083786,2.86101,3495.3,3493.9,2.86212]
[1721655083787,2.86099,3495.3,3494.5,2.86163]
[1721655084042,2.8609,3495.4,3494.0,2.86204]
[1721655084184,2.86074,3495.6,3494.5,2.86157]
[1721655084185,0.35,3495.3,3494.5,2.86157]
[1721655084385,5.72123,3495.8,3494.8,2.86138]
[1721655084684,0.799363,3495.7,3494.9,0.55]
[1721655084883,2.86049,3495.9,3494.9,0.55]
[1721655085123,0.44873488,3496.2,3494.9,3.4113]
[1721655085345,3.21041,3496.0,3495.0,2.86117]
[1721655085485,2.86049,3495.9,3495.0,2.86117]
[1721655085686,2.86058,3495.8,3494.9,0.55]
[1721655085888,3.146778,3495.7,3494.8,3.41139]
[1721655086122,3.146728,3495.7,3494.8,0.55]
[1721655086324,3.146728,3495.7,3494.7,0.55]
[1721655086325,0.286058,3495.7,3494.7,0.55]
[1721655086534,0.2954613,3496.1,3494.9,2.3337]
[1721655086802,5.87755,3497.1,3494.9,2.3337]
[1721655086803,2.86005,3496.5,3495.5,2.8608]
[1721655087119,2.86001,3496.5,3495.6,2.8607]
[1721655087318,2.86,3496.5,3495.4,2.8609]
[1721655087624,2.86,3496.5,3495.5,0.55]
[1721655087933,2.86017,3496.3,3495.5,0.55]
[1721655088141,2.86017,3496.3,3495.4,2.86088]
[1721655088325,0.286,3496.4,3495.2,3.41104]
[1721655088326,0.286,3496.4,3495.7,2.8606]
[1721655088509,0.286,3496.4,3495.7,2.86064]
[1721655088712,0.286,3496.4,3495.8,0.55]
[1721655089225,0.286,3496.4,3494.6,3.22]
[1721655089431,2.86026,3496.2,3495.1,2.86112]
[1721655089757,0.614603,3496.3,3495.4,2.86088]
[1721655089903,3.474833,3496.3,3495.5,0.55]
[1721655090827,3.474833,3496.3,3495.5,3.41081]
[1721655090828,0.614603,3496.3,3495.5,3.41081]
[1721655091007,2.4431,3497.0,3495.7,2.8606]
[1721655091008,3.0,3496.5,3495.7,2.8606]
[1721655091220,2.85978,3496.8,3495.7,2.8606]
[1721655091221,2.85998,3496.6,3495.7,2.8606]
[1721655091509,3.0,3496.5,3495.7,2.8606]
[1721655091813,2.86041,3496.0,3495.0,0.23337]
[1721655092020,5.85989,3496.7,3495.2,2.861]
[1721655092227,5.85989,3496.7,3494.7,3.0]
[1721655092228,2.86034,3496.1,3495.3,2.86098]
[1721655092430,0.585989,3496.6,3495.3,2.86098]
[1721655092431,2.86024,3496.2,3495.3,2.86098]
[1721655093356,2.86021,3496.3,3495.1,2.86113]
[1721655093568,0.35,3496.4,3494.9,2.3337]
[1721655093720,2.86071,3495.7,3494.3,2.3789]
[1721655093927,0.35,3495.6,3494.3,2.3789]
[1721655094113,2.86112,3495.2,3494.3,5.24068]
[1721655094308,2.8613,3495.0,3494.0,2.86199]
[1721655094536,2.86139,3494.8,3493.8,2.4801]
[1721655094878,2.86156,3494.6,3493.8,2.4801]
[1721655095203,3.147549,3494.8,3493.8,5.34226]
[1721655095204,2.86148,3494.7,3493.8,5.34226]
[1721655095723,2.8616,3494.6,3493.8,5.3423]
[1721655095919,2.86164,3494.5,3493.6,2.86233]
[1721655096329,2.86153,3494.7,3493.7,2.86228]
[1721655096524,3.147549,3494.8,3493.9,2.86211]
[1721655096525,0.6009079,3494.6,3493.9,2.86211]
[1721655096840,0.286139,3494.8,3493.3,2.3237]
[1721655097037,3.0,3494.9,3493.4,0.60723369]
[1721655097346,3.0,3495.2,3493.4,0.60723369]
[1721655097548,2.86121,3495.1,3494.1,2.86189]
[1721655097749,2.8616,3494.6,3493.4,0.55]
[1721655098064,2.86158,3494.6,3493.8,2.86218]
[1721655098268,2.86144,3494.8,3493.9,2.86206]
[1721655098473,3.46874,3494.7,3493.7,2.86223]
[1721655098656,0.60727,3494.7,3493.5,2.86245]
[1721655098843,2.86185,3494.3,3493.5,2.86245]
[1721655099041,2.86169,3494.5,3493.6,2.86237]
[1721655099374,3.0,3494.6,3493.6,2.86237]
[1721655099375,5.86156,3494.6,3493.6,2.86237]
[1721655099669,2.86117,3495.1,3493.7,0.55]
[1721655099965,2.4523,3495.5,3493.8,0.05723204]
[1721655099966,0.35,3495.2,3493.8,0.05723204]
[1721655100135,2.86091,3495.4,3494.5,2.86162]
[1721655100330,2.86098,3495.3,3494.5,2.86162]
[1721655100525,3.433157,3495.3,3494.5,2.86162]
[1721655101148,3.433157,3495.3,3494.5,2.8616]
[1721655101149,0.572177,3495.3,3494.5,2.8616]
[1721655101351,3.572177,3495.3,3494.6,2.86154]
[1721655101551,3.572177,3495.3,3494.5,2.86157]